[Event "*** Titled Tuesday Blitz"]
[Site "Chess.com"]
[Date "2021.03.30"]
[Round "2"]
[White "NoboaKevin1999"]
[Black "Vandros57"]
[Result "1-0"]
[WhiteElo "2427"]
[BlackElo "2197"]
[TimeControl "180+1"]
[EndTime "10:17:10 PDT"]
[Termination "NoboaKevin1999 won on time"]

1. d4 {[%clk 0:03:00.9]} 1... d5 {[%clk 0:02:59]} 2. c4 {[%clk 0:03:01]} 2... e6
{[%clk 0:02:58.5]} 3. Nc3 {[%clk 0:03:01.3]} 3... Nf6 {[%clk 0:02:58.1]} 4. cxd5
{[%clk 0:03:02.2]} 4... exd5 {[%clk 0:02:57.6]} 5. Bg5 {[%clk 0:03:02.6]} 5...
c6 {[%clk 0:02:56.9]} 6. e3 {[%clk 0:03:02.9]} 6... Be7 {[%clk 0:02:56.5]} 7.
Bd3 {[%clk 0:03:03.2]} 7... O-O {[%clk 0:02:56]} 8. Nge2 {[%clk 0:03:03.4]} 8...
h6 {[%clk 0:02:47.6]} 9. Bh4 {[%clk 0:03:03.2]} 9... Ne4 {[%clk 0:02:36.8]} 10.
Bxe7 {[%clk 0:03:00.9]} 10... Qxe7 {[%clk 0:02:35.8]} 11. Bxe4 {[%clk
0:03:00.4]} 11... dxe4 {[%clk 0:02:34.7]} 12. Ng3 {[%clk 0:03:00.7]} 12... f5
{[%clk 0:02:28.9]} 13. d5 {[%clk 0:02:59.4]} 13... cxd5 {[%clk 0:02:18.2]} 14.
Nxd5 {[%clk 0:02:58.6]} 14... Qe5 {[%clk 0:02:12.2]} 15. Rc1 {[%clk 0:02:51.9]}
15... Rd8 {[%clk 0:01:59.9]} 16. O-O {[%clk 0:02:42.8]} 16... Nc6 {[%clk
0:01:55]} 17. Rc5 {[%clk 0:02:36.5]} 17... Qd6 {[%clk 0:01:39.4]} 18. Qc1 {[%clk
0:02:16.4]} 18... Be6 {[%clk 0:01:32.4]} 19. Rd1 {[%clk 0:02:15.6]} 19... Kh8
{[%clk 0:01:15.7]} 20. h4 {[%clk 0:02:00.4]} 20... Qe5 {[%clk 0:01:03.2]} 21.
Qc4 {[%clk 0:01:43.1]} 21... Rac8 {[%clk 0:00:46.7]} 22. Ne2 {[%clk 0:01:36.1]}
22... Qxb2 {[%clk 0:00:41.2]} 23. Nef4 {[%clk 0:01:34.4]} 23... Ne5 {[%clk
0:00:36.1]} 24. Rxc8 {[%clk 0:01:31.6]} 24... Rxc8 {[%clk 0:00:34.8]} 25. Qa4
{[%clk 0:01:20.9]} 25... Bxd5 {[%clk 0:00:33.1]} 26. Rxd5 {[%clk 0:01:13.5]}
26... Rc1+ {[%clk 0:00:22.3]} 27. Rd1 {[%clk 0:01:12.9]} 27... Nd3 {[%clk
0:00:15.5]} 28. Qe8+ {[%clk 0:01:03.7]} 28... Kh7 {[%clk 0:00:15]} 29. Qg6+
{[%clk 0:01:03.1]} 29... Kg8 {[%clk 0:00:10.3]} 30. Qe6+ {[%clk 0:01:01.1]}
30... Kh8 {[%clk 0:00:08]} 31. Ng6+ {[%clk 0:00:35.7]} 31... Kh7 {[%clk
0:00:07.6]} 32. Rxc1 {[%clk 0:00:34.8]} 32... Qxc1+ {[%clk 0:00:03.9]} 33. Kh2
{[%clk 0:00:34.8]} 33... Qc7+ {[%clk 0:00:02.2]} 34. g3 {[%clk 0:00:32.4]} 34...
Nxf2 {[%clk 0:00:01.5]} 35. Qxf5 {[%clk 0:00:31.5]} 1-0

[Event "*** Titled Tuesday Blitz"]
[Site "Chess.com"]
[Date "2021.03.30"]
[Round "2"]
[White "ShimanovAlex"]
[Black "DrVitman"]
[Result "0-1"]
[WhiteElo "2785"]
[BlackElo "2584"]
[TimeControl "180+1"]
[EndTime "10:17:11 PDT"]
[Termination "DrVitman won by checkmate"]

1. e4 {[%clk 0:03:00.5]} 1... c5 {[%clk 0:02:59.4]} 2. Nf3 {[%clk 0:02:59.4]}
2... Nc6 {[%clk 0:02:59.9]} 3. Bb5 {[%clk 0:02:57.2]} 3... g6 {[%clk 0:02:59.1]}
4. O-O {[%clk 0:02:55.5]} 4... Bg7 {[%clk 0:02:58.9]} 5. Re1 {[%clk 0:02:54.1]}
5... e5 {[%clk 0:02:58.9]} 6. c3 {[%clk 0:02:43.2]} 6... Nge7 {[%clk 0:02:57.8]}
7. d4 {[%clk 0:02:43]} 7... cxd4 {[%clk 0:02:55.6]} 8. cxd4 {[%clk 0:02:43.3]}
8... Nxd4 {[%clk 0:02:54.3]} 9. Nxd4 {[%clk 0:02:42.7]} 9... exd4 {[%clk
0:02:55.2]} 10. Bf4 {[%clk 0:02:41.8]} 10... O-O {[%clk 0:02:53.2]} 11. Bd6
{[%clk 0:02:36]} 11... Re8 {[%clk 0:02:50.6]} 12. Bc4 {[%clk 0:02:25.4]} 12...
Qb6 {[%clk 0:02:43.1]} 13. Ba3 {[%clk 0:02:21.8]} 13... Nc6 {[%clk 0:02:34]} 14.
Nd2 {[%clk 0:02:03.8]} 14... Ne5 {[%clk 0:02:28.5]} 15. Bd5 {[%clk 0:02:02.9]}
15... d6 {[%clk 0:02:28.7]} 16. h3 {[%clk 0:01:41.5]} 16... Be6 {[%clk
0:02:18.4]} 17. f4 {[%clk 0:01:41.1]} 17... Bxd5 {[%clk 0:01:41.7]} 18. exd5
{[%clk 0:01:40.6]} 18... Nd7 {[%clk 0:01:30.3]} 19. Rxe8+ {[%clk 0:01:32.6]}
19... Rxe8 {[%clk 0:01:29]} 20. Nc4 {[%clk 0:01:33.5]} 20... Qa6 {[%clk
0:01:26.8]} 21. Nxd6 {[%clk 0:01:30]} 21... Re3 {[%clk 0:01:20]} 22. Nc8 {[%clk
0:01:06.1]} 22... Bf6 {[%clk 0:00:51.6]} 23. Qg4 {[%clk 0:01:02.2]} 23... Qb5
{[%clk 0:00:30.4]} 24. Nd6 {[%clk 0:00:55.3]} 24... Qa4 {[%clk 0:00:30.2]} 25.
Rc1 {[%clk 0:00:48.1]} 25... Rxa3 {[%clk 0:00:29.6]} 26. Rc8+ {[%clk 0:00:42.7]}
26... Nf8 {[%clk 0:00:29]} 27. bxa3 {[%clk 0:00:42.1]} 27... d3 {[%clk
0:00:27.5]} 28. Nc4 {[%clk 0:00:21.6]} 28... d2 {[%clk 0:00:25]} 29. Nxd2 {[%clk
0:00:21.5]} 29... Qd4+ {[%clk 0:00:25.1]} 30. Kh1 {[%clk 0:00:22]} 30... Qxd2
{[%clk 0:00:25.5]} 31. Qf3 {[%clk 0:00:17.2]} 31... Bd4 {[%clk 0:00:24.7]} 32.
Kh2 {[%clk 0:00:16.5]} 32... Qe1 {[%clk 0:00:21.4]} 33. Rc2 {[%clk 0:00:13.4]}
33... Bg1+ {[%clk 0:00:16.5]} 34. Kh1 {[%clk 0:00:12.8]} 34... Bf2+ {[%clk
0:00:16.8]} 35. Kh2 {[%clk 0:00:13.7]} 35... Qg1# {[%clk 0:00:16.8]} 0-1

[Event "*** Titled Tuesday Blitz"]
[Site "Chess.com"]
[Date "2021.03.30"]
[Round "2"]
[White "dpopadic"]
[Black "AlexSuv"]
[Result "0-1"]
[WhiteElo "2315"]
[BlackElo "2571"]
[TimeControl "180+1"]
[EndTime "10:17:11 PDT"]
[Termination "AlexSuv won by resignation"]

1. e4 {[%clk 0:03:00.9]} 1... c5 {[%clk 0:02:56.8]} 2. Nc3 {[%clk 0:02:59.9]}
2... e6 {[%clk 0:02:56.2]} 3. d3 {[%clk 0:02:59.2]} 3... Nc6 {[%clk 0:02:55.9]}
4. g4 {[%clk 0:02:59]} 4... g6 {[%clk 0:02:49.4]} 5. Bg2 {[%clk 0:02:59]} 5...
Bg7 {[%clk 0:02:48.5]} 6. Nh3 {[%clk 0:02:58.8]} 6... h5 {[%clk 0:02:48.5]} 7.
g5 {[%clk 0:02:58]} 7... Nge7 {[%clk 0:02:46.5]} 8. O-O {[%clk 0:02:57.8]} 8...
O-O {[%clk 0:02:43]} 9. Be3 {[%clk 0:02:52.1]} 9... Nd4 {[%clk 0:02:42.2]} 10.
f4 {[%clk 0:02:48.5]} 10... d5 {[%clk 0:02:39.3]} 11. Kh1 {[%clk 0:02:46.4]}
11... b6 {[%clk 0:02:31.5]} 12. Qd2 {[%clk 0:02:33]} 12... Bb7 {[%clk
0:02:30.2]} 13. Rad1 {[%clk 0:02:31.1]} 13... Rc8 {[%clk 0:02:29.2]} 14. Bg1
{[%clk 0:02:20]} 14... a6 {[%clk 0:02:20.3]} 15. b3 {[%clk 0:02:20]} 15... b5
{[%clk 0:02:19.8]} 16. Nf2 {[%clk 0:02:12.9]} 16... Qa5 {[%clk 0:02:15.5]} 17.
Nxd5 {[%clk 0:02:04.1]} 17... Qd8 {[%clk 0:02:15.6]} 18. Nxe7+ {[%clk
0:02:02.9]} 18... Qxe7 {[%clk 0:02:16.5]} 19. c3 {[%clk 0:02:01.5]} 19... Nc6
{[%clk 0:02:14.9]} 20. Qe3 {[%clk 0:01:54.3]} 20... Bxc3 {[%clk 0:02:12.4]} 21.
Qh3 {[%clk 0:01:45.4]} 21... Bd4 {[%clk 0:02:05.3]} 22. e5 {[%clk 0:01:36.6]}
22... Bxf2 {[%clk 0:02:01.6]} 23. Bxf2 {[%clk 0:01:36.2]} 23... Nd4 {[%clk
0:02:01.8]} 24. b4 {[%clk 0:01:20.1]} 24... Rfd8 {[%clk 0:01:44.7]} 25. bxc5
{[%clk 0:01:17.5]} 25... Bxg2+ {[%clk 0:01:44.5]} 26. Qxg2 {[%clk 0:01:16.8]}
26... Qxc5 {[%clk 0:01:44.7]} 27. Qe4 {[%clk 0:01:08]} 27... Qd5 {[%clk
0:01:38.1]} 28. h3 {[%clk 0:00:59.7]} 28... Qxe4+ {[%clk 0:01:29.5]} 29. dxe4
{[%clk 0:00:59]} 29... Ne2 {[%clk 0:01:30.4]} 30. f5 {[%clk 0:00:35]} 30... exf5
{[%clk 0:01:19]} 31. exf5 {[%clk 0:00:35]} 31... gxf5 {[%clk 0:01:19.9]} 32. Kg2
{[%clk 0:00:30.7]} 32... Nf4+ {[%clk 0:01:16]} 33. Kg3 {[%clk 0:00:26.6]} 33...
Ng6 {[%clk 0:01:16]} 34. Bb6 {[%clk 0:00:22.7]} 34... Rc3+ {[%clk 0:01:14.1]}
35. Kh2 {[%clk 0:00:19.7]} 35... Rxd1 {[%clk 0:01:11.9]} 36. Rxd1 {[%clk
0:00:19.4]} 36... Nf4 {[%clk 0:01:12.8]} 37. Rd8+ {[%clk 0:00:18.3]} 37... Kh7
{[%clk 0:01:10.9]} 38. Rd7 {[%clk 0:00:17.6]} 38... Rxh3+ {[%clk 0:01:10]} 39.
Kg1 {[%clk 0:00:16.9]} 39... Kg6 {[%clk 0:01:09.9]} 40. Rd6+ {[%clk 0:00:16.2]}
40... Kxg5 {[%clk 0:01:09.2]} 41. Bd8+ {[%clk 0:00:16.7]} 41... Kg4 {[%clk
0:01:09.6]} 42. Rxa6 {[%clk 0:00:15.8]} 42... Rg3+ {[%clk 0:01:05.6]} 43. Kh2
{[%clk 0:00:14.7]} 43... Rg2+ {[%clk 0:01:05.2]} 44. Kh1 {[%clk 0:00:14.9]}
44... h4 {[%clk 0:01:05.1]} 45. Rf6 {[%clk 0:00:13.6]} 45... h3 {[%clk
0:01:02.3]} 46. Rxf7 {[%clk 0:00:13.8]} 46... Nh5 {[%clk 0:01:01.7]} 47. Rg7+
{[%clk 0:00:06.5]} 47... Nxg7 {[%clk 0:01:00.3]} 0-1

[Event "*** Titled Tuesday Blitz"]
[Site "Chess.com"]
[Date "2021.03.30"]
[Round "2"]
[White "SmallTurtleDuck"]
[Black "xberli"]
[Result "1-0"]
[WhiteElo "2321"]
[BlackElo "2512"]
[TimeControl "180+1"]
[EndTime "10:17:11 PDT"]
[Termination "SmallTurtleDuck won by resignation"]

1. d4 {[%clk 0:03:00.9]} 1... Nf6 {[%clk 0:02:58.4]} 2. Nd2 {[%clk 0:03:00.9]}
2... e6 {[%clk 0:02:53.2]} 3. e4 {[%clk 0:03:00.8]} 3... c5 {[%clk 0:02:52.4]}
4. c3 {[%clk 0:02:59.6]} 4... cxd4 {[%clk 0:02:51.5]} 5. cxd4 {[%clk 0:03:00.5]}
5... Bb4 {[%clk 0:02:48.9]} 6. Bd3 {[%clk 0:02:58.6]} 6... Nc6 {[%clk
0:02:47.7]} 7. Nf3 {[%clk 0:02:58.9]} 7... h6 {[%clk 0:02:47.1]} 8. a3 {[%clk
0:02:57.9]} 8... Ba5 {[%clk 0:02:46.2]} 9. b4 {[%clk 0:02:55.2]} 9... Bb6 {[%clk
0:02:45.3]} 10. Nb3 {[%clk 0:02:53.4]} 10... d6 {[%clk 0:02:44.2]} 11. O-O
{[%clk 0:02:52.4]} 11... O-O {[%clk 0:02:43.9]} 12. Bb2 {[%clk 0:02:52]} 12...
a6 {[%clk 0:02:36.8]} 13. Rc1 {[%clk 0:02:42.9]} 13... Ne7 {[%clk 0:02:34.4]}
14. Bb1 {[%clk 0:02:40.6]} 14... Ng6 {[%clk 0:02:30.5]} 15. e5 {[%clk
0:02:36.7]} 15... Nd5 {[%clk 0:02:25.2]} 16. Bxg6 {[%clk 0:02:26.3]} 16... fxg6
{[%clk 0:02:23]} 17. Qd3 {[%clk 0:02:26.9]} 17... Nf4 {[%clk 0:02:22.2]} 18. Qe4
{[%clk 0:02:24.8]} 18... d5 {[%clk 0:02:20]} 19. Qe3 {[%clk 0:02:24.9]} 19...
Bd7 {[%clk 0:02:17.7]} 20. Nc5 {[%clk 0:02:24.6]} 20... Bxc5 {[%clk 0:02:13.1]}
21. dxc5 {[%clk 0:02:25.3]} 21... g5 {[%clk 0:02:11.7]} 22. Nd4 {[%clk
0:02:20.3]} 22... Qe7 {[%clk 0:02:06.1]} 23. Rfe1 {[%clk 0:02:09.2]} 23... Be8
{[%clk 0:02:03.3]} 24. g3 {[%clk 0:02:09.1]} 24... Nh3+ {[%clk 0:01:55.3]} 25.
Kg2 {[%clk 0:02:05.7]} 25... Rxf2+ {[%clk 0:01:39.9]} 26. Kxh3 {[%clk
0:02:02.9]} 26... Rxb2 {[%clk 0:01:32]} 27. Rf1 {[%clk 0:02:02.3]} 27... Bh5
{[%clk 0:01:11.7]} 28. g4 {[%clk 0:01:57.4]} 28... Bg6 {[%clk 0:01:05]} 29. Qc3
{[%clk 0:01:55.8]} 29... Ra2 {[%clk 0:00:58.2]} 30. Qb3 {[%clk 0:01:55.9]} 30...
Rd2 {[%clk 0:00:55]} 31. Qc3 {[%clk 0:01:56]} 31... Rxd4 {[%clk 0:00:48.8]} 32.
Qxd4 {[%clk 0:01:55.5]} 32... Rf8 {[%clk 0:00:48.6]} 33. Kg3 {[%clk 0:01:44.1]}
33... Be4 {[%clk 0:00:42.3]} 34. Rf2 {[%clk 0:01:40.2]} 34... Rf4 {[%clk
0:00:29.5]} 35. Qe3 {[%clk 0:01:32.6]} 35... Qc7 {[%clk 0:00:23.3]} 36. Rxf4
{[%clk 0:01:26.1]} 36... Qxe5 {[%clk 0:00:18.2]} 37. Rf1 {[%clk 0:01:26.6]}
37... Kh7 {[%clk 0:00:13.9]} 38. h4 {[%clk 0:01:21.2]} 38... gxf4+ {[%clk
0:00:13.7]} 39. Qxf4 {[%clk 0:01:20.8]} 39... Qc3+ {[%clk 0:00:14]} 40. Kh2
{[%clk 0:01:18.7]} 40... Qxa3 {[%clk 0:00:13.1]} 41. Qd2 {[%clk 0:01:14]} 41...
Qb3 {[%clk 0:00:11.7]} 42. g5 {[%clk 0:01:09.5]} 42... Qc4 {[%clk 0:00:11.4]}
43. Rg1 {[%clk 0:01:06]} 43... Bf5 {[%clk 0:00:11.3]} 44. Qf2 {[%clk 0:00:57.9]}
44... Qe4 {[%clk 0:00:10.6]} 45. gxh6 {[%clk 0:00:56.8]} 45... gxh6 {[%clk
0:00:10.5]} 46. Qg3 {[%clk 0:00:55.6]} 46... Bg6 {[%clk 0:00:06.6]} 47. h5
{[%clk 0:00:56.1]} 47... Qf5 {[%clk 0:00:04.9]} 48. hxg6+ {[%clk 0:00:56.3]}
48... Kg8 {[%clk 0:00:04.1]} 49. Qb8+ {[%clk 0:00:56.4]} 49... Kg7 {[%clk
0:00:04.1]} 50. Qc7+ {[%clk 0:00:57]} 50... Kf6 {[%clk 0:00:04.1]} 51. Qf7+
{[%clk 0:00:57]} 51... Ke5 {[%clk 0:00:03.3]} 52. Qxf5+ {[%clk 0:00:57.9]} 52...
Kxf5 {[%clk 0:00:04.2]} 53. g7 {[%clk 0:00:58.8]} 1-0

[Event "*** Titled Tuesday Blitz"]
[Site "Chess.com"]
[Date "2021.03.30"]
[Round "2"]
[White "Jumbo"]
[Black "Mikhail_Golubev"]
[Result "1-0"]
[WhiteElo "2784"]
[BlackElo "2524"]
[TimeControl "180+1"]
[EndTime "10:17:12 PDT"]
[Termination "Jumbo won on time"]

1. d4 {[%clk 0:03:00.9]} 1... Nf6 {[%clk 0:02:54]} 2. Bf4 {[%clk 0:03:00.3]}
2... c5 {[%clk 0:02:50.6]} 3. dxc5 {[%clk 0:03:00.1]} 3... Qa5+ {[%clk
0:02:42.1]} 4. Qd2 {[%clk 0:02:46.5]} 4... Qxc5 {[%clk 0:02:32.3]} 5. Nc3 {[%clk
0:02:46.6]} 5... d6 {[%clk 0:02:04]} 6. e4 {[%clk 0:02:33.2]} 6... g6 {[%clk
0:01:38.8]} 7. f3 {[%clk 0:02:23.6]} 7... Bg7 {[%clk 0:01:36.3]} 8. Be3 {[%clk
0:02:20.7]} 8... Qa5 {[%clk 0:01:20.9]} 9. Nb5 {[%clk 0:02:15.4]} 9... Qxd2+
{[%clk 0:01:12.2]} 10. Kxd2 {[%clk 0:02:16.3]} 10... Na6 {[%clk 0:01:04]} 11.
Nxa7 {[%clk 0:02:14.8]} 11... O-O {[%clk 0:01:00]} 12. Bxa6 {[%clk 0:01:41.3]}
12... bxa6 {[%clk 0:00:58.8]} 13. Nxc8 {[%clk 0:01:40.2]} 13... Rfxc8 {[%clk
0:00:58.2]} 14. Ne2 {[%clk 0:01:38.7]} 14... Rab8 {[%clk 0:00:54.5]} 15. b3
{[%clk 0:01:37.4]} 15... Nd7 {[%clk 0:00:50.8]} 16. Rab1 {[%clk 0:01:33.3]}
16... a5 {[%clk 0:00:43.7]} 17. Bd4 {[%clk 0:01:24.4]} 17... Bh6+ {[%clk
0:00:40.1]} 18. Kd3 {[%clk 0:01:24.5]} 18... Nc5+ {[%clk 0:00:34.2]} 19. Bxc5
{[%clk 0:01:23.6]} 19... Rxc5 {[%clk 0:00:34.2]} 20. c4 {[%clk 0:01:23.2]} 20...
e6 {[%clk 0:00:25.3]} 21. Nc3 {[%clk 0:01:22.1]} 21... Bg7 {[%clk 0:00:25.2]}
22. Na4 {[%clk 0:01:16.7]} 22... Rc6 {[%clk 0:00:24.4]} 23. Rhd1 {[%clk
0:01:16.8]} 23... f5 {[%clk 0:00:24.4]} 24. Rbc1 {[%clk 0:01:00.3]} 24... Rf8
{[%clk 0:00:21.6]} 25. Rc2 {[%clk 0:00:59.1]} 25... fxe4+ {[%clk 0:00:20.7]} 26.
Kxe4 {[%clk 0:00:58.6]} 26... g5 {[%clk 0:00:18.7]} 27. Rcd2 {[%clk 0:00:55.4]}
27... Be5 {[%clk 0:00:15.3]} 28. g3 {[%clk 0:00:54.8]} 28... Rf5 {[%clk
0:00:12.3]} 29. Rd3 {[%clk 0:00:48.9]} 29... Kf8 {[%clk 0:00:10.3]} 30. Ke3
{[%clk 0:00:38.4]} 30... Ke7 {[%clk 0:00:10.4]} 31. Ke2 {[%clk 0:00:38.6]} 31...
h5 {[%clk 0:00:10.3]} 32. Nc3 {[%clk 0:00:36.6]} 32... h4 {[%clk 0:00:09.8]} 33.
Ne4 {[%clk 0:00:36.4]} 33... hxg3 {[%clk 0:00:04.5]} 34. hxg3 {[%clk 0:00:37.3]}
34... Rc8 {[%clk 0:00:02.8]} 35. Rh1 {[%clk 0:00:37.4]} 35... d5 {[%clk
0:00:02.9]} 36. cxd5 {[%clk 0:00:36.8]} 36... exd5 {[%clk 0:00:02.5]} 37. Rxd5
{[%clk 0:00:36.6]} 1-0

[Event "*** Titled Tuesday Blitz"]
[Site "Chess.com"]
[Date "2021.03.30"]
[Round "2"]
[White "x-5963514717"]
[Black "Beca95"]
[Result "0-1"]
[WhiteElo "2361"]
[BlackElo "2905"]
[TimeControl "180+1"]
[EndTime "10:17:12 PDT"]
[Termination "Beca95 won by resignation"]

1. Nf3 {[%clk 0:03:00.9]} 1... g6 {[%clk 0:02:57.8]} 2. g3 {[%clk 0:03:00.9]}
2... Bg7 {[%clk 0:02:58.3]} 3. d4 {[%clk 0:03:01.6]} 3... d6 {[%clk 0:02:57.8]}
4. Bg2 {[%clk 0:03:01.7]} 4... Nd7 {[%clk 0:02:58.3]} 5. O-O {[%clk 0:03:01.9]}
5... e5 {[%clk 0:02:58.7]} 6. e4 {[%clk 0:02:59.1]} 6... Ngf6 {[%clk 0:02:58.3]}
7. Nc3 {[%clk 0:02:58.7]} 7... O-O {[%clk 0:02:58.4]} 8. Re1 {[%clk 0:02:57.6]}
8... c6 {[%clk 0:02:58.4]} 9. a4 {[%clk 0:02:56.8]} 9... Re8 {[%clk 0:02:58.2]}
10. h3 {[%clk 0:02:55.4]} 10... a5 {[%clk 0:02:57.8]} 11. Bg5 {[%clk 0:02:55.4]}
11... h6 {[%clk 0:02:57.4]} 12. Be3 {[%clk 0:02:55.7]} 12... Qc7 {[%clk
0:02:54.2]} 13. Qd2 {[%clk 0:02:55.7]} 13... Kh7 {[%clk 0:02:54.7]} 14. Rad1
{[%clk 0:02:56.2]} 14... exd4 {[%clk 0:02:48.9]} 15. Bxd4 {[%clk 0:02:51]} 15...
Ne5 {[%clk 0:02:47.9]} 16. Nxe5 {[%clk 0:02:49.9]} 16... dxe5 {[%clk 0:02:48.8]}
17. Bc5 {[%clk 0:02:49.9]} 17... Bf8 {[%clk 0:02:40.1]} 18. Bxf8 {[%clk
0:02:40.6]} 18... Rxf8 {[%clk 0:02:41]} 19. Qd6 {[%clk 0:02:40.5]} 19... Qxd6
{[%clk 0:02:41.2]} 20. Rxd6 {[%clk 0:02:41.4]} 20... Kg7 {[%clk 0:02:41.7]} 21.
Red1 {[%clk 0:02:39.6]} 21... Be6 {[%clk 0:02:41.8]} 22. Bf1 {[%clk 0:02:38.4]}
22... Rfc8 {[%clk 0:02:37.9]} 23. f4 {[%clk 0:02:36.8]} 23... Ne8 {[%clk
0:02:13.3]} 24. R6d2 {[%clk 0:02:33]} 24... exf4 {[%clk 0:02:03.1]} 25. gxf4
{[%clk 0:02:32.8]} 25... f5 {[%clk 0:02:03.3]} 26. e5 {[%clk 0:02:26.2]} 26...
Kf7 {[%clk 0:02:02.3]} 27. Ne2 {[%clk 0:02:16.2]} 27... Ke7 {[%clk 0:01:56.1]}
28. Nd4 {[%clk 0:02:15.8]} 28... Bg8 {[%clk 0:01:42.6]} 29. h4 {[%clk
0:02:15.8]} 29... h5 {[%clk 0:01:42.3]} 30. Nf3 {[%clk 0:02:08.9]} 30... Rd8
{[%clk 0:01:38.8]} 31. Nd4 {[%clk 0:01:52.4]} 31... Nc7 {[%clk 0:01:35.8]} 32.
Kf2 {[%clk 0:01:39.6]} 32... Nd5 {[%clk 0:01:25.3]} 33. Kf3 {[%clk 0:01:39.8]}
33... Nb6 {[%clk 0:01:24]} 34. b3 {[%clk 0:01:35.3]} 34... Bd5+ {[%clk
0:01:23.4]} 35. Kg3 {[%clk 0:01:35.4]} 35... Be4 {[%clk 0:01:20.1]} 36. Bg2
{[%clk 0:01:26]} 36... Bxg2 {[%clk 0:01:19.7]} 37. Kxg2 {[%clk 0:01:26]} 37...
Nd5 {[%clk 0:01:19.7]} 38. Kf3 {[%clk 0:01:25.2]} 38... Nc3 {[%clk 0:01:14.5]}
39. Rg1 {[%clk 0:01:22.6]} 39... c5 {[%clk 0:01:14.8]} 40. Nxf5+ {[%clk
0:01:09.2]} 40... gxf5 {[%clk 0:01:11.4]} 41. Rg7+ {[%clk 0:01:05.7]} 41... Kf8
{[%clk 0:01:11.2]} 42. Rxd8+ {[%clk 0:01:02]} 42... Rxd8 {[%clk 0:01:09.9]} 43.
Rxb7 {[%clk 0:01:01.7]} 43... Rd4 {[%clk 0:00:56.5]} 44. e6 {[%clk 0:00:54.3]}
44... Nd5 {[%clk 0:00:55.8]} 45. Rf7+ {[%clk 0:00:52.5]} 45... Ke8 {[%clk
0:00:54.8]} 46. Rxf5 {[%clk 0:00:53.4]} 46... Ke7 {[%clk 0:00:51.2]} 47. c4
{[%clk 0:00:46.4]} 47... Nf6 {[%clk 0:00:51.2]} 48. Rxc5 {[%clk 0:00:44.4]}
48... Kxe6 {[%clk 0:00:51.4]} 49. Rxa5 {[%clk 0:00:42.4]} 49... Rd3+ {[%clk
0:00:51.6]} 50. Ke2 {[%clk 0:00:40.8]} 50... Rxb3 {[%clk 0:00:52]} 51. Re5+
{[%clk 0:00:34.3]} 51... Kf7 {[%clk 0:00:52.1]} 52. Rb5 {[%clk 0:00:34.2]} 52...
Rc3 {[%clk 0:00:51.1]} 53. c5 {[%clk 0:00:33.3]} 53... Ne4 {[%clk 0:00:51.3]}
54. c6 {[%clk 0:00:31.1]} 54... Rxc6 {[%clk 0:00:51.2]} 55. Rxh5 {[%clk
0:00:31.1]} 55... Ng3+ {[%clk 0:00:51.3]} 0-1

[Event "*** Titled Tuesday Blitz"]
[Site "Chess.com"]
[Date "2021.03.30"]
[Round "2"]
[White "manmanlai1"]
[Black "Michaelson_11"]
[Result "1-0"]
[WhiteElo "2463"]
[BlackElo "2254"]
[TimeControl "180+1"]
[EndTime "10:17:13 PDT"]
[Termination "manmanlai1 won by resignation"]

1. d4 {[%clk 0:03:00.9]} 1... Nf6 {[%clk 0:02:57.9]} 2. c4 {[%clk 0:03:01.2]}
2... g6 {[%clk 0:02:56.9]} 3. Nc3 {[%clk 0:02:59.7]} 3... Bg7 {[%clk 0:02:57.8]}
4. Bg5 {[%clk 0:02:58.6]} 4... O-O {[%clk 0:02:53.7]} 5. e3 {[%clk 0:02:58.2]}
5... d6 {[%clk 0:02:49.4]} 6. Nf3 {[%clk 0:02:54.4]} 6... Nbd7 {[%clk
0:02:42.6]} 7. Be2 {[%clk 0:02:54.5]} 7... c5 {[%clk 0:02:32.9]} 8. O-O {[%clk
0:02:51.2]} 8... b6 {[%clk 0:02:19.9]} 9. Re1 {[%clk 0:02:39]} 9... Bb7 {[%clk
0:02:17.7]} 10. Rc1 {[%clk 0:02:37.6]} 10... h6 {[%clk 0:01:55.1]} 11. Bh4
{[%clk 0:02:37.1]} 11... g5 {[%clk 0:01:55.1]} 12. Bg3 {[%clk 0:02:37.2]} 12...
Nh5 {[%clk 0:01:49]} 13. d5 {[%clk 0:02:24]} 13... Nxg3 {[%clk 0:01:39.5]} 14.
fxg3 {[%clk 0:02:18.5]} 14... f5 {[%clk 0:01:30.3]} 15. Bd3 {[%clk 0:02:15.2]}
15... Ne5 {[%clk 0:01:17.9]} 16. Rf1 {[%clk 0:02:01.9]} 16... Bc8 {[%clk
0:01:04.2]} 17. Nxe5 {[%clk 0:01:59.1]} 17... dxe5 {[%clk 0:01:00.6]} 18. e4
{[%clk 0:01:58.9]} 18... f4 {[%clk 0:00:58.9]} 19. Be2 {[%clk 0:01:57.8]} 19...
Qd7 {[%clk 0:00:37.6]} 20. h3 {[%clk 0:01:49.8]} 20... Qe8 {[%clk 0:00:25.1]}
21. Bh5 {[%clk 0:01:42.4]} 21... Qd8 {[%clk 0:00:20.4]} 22. Kh2 {[%clk
0:01:37.5]} 22... Bd7 {[%clk 0:00:16.7]} 23. Bg4 {[%clk 0:01:35.2]} 23... Qc7
{[%clk 0:00:07.6]} 24. Bxd7 {[%clk 0:01:34.4]} 24... Qxd7 {[%clk 0:00:08.5]} 25.
a3 {[%clk 0:01:28.9]} 25... Rad8 {[%clk 0:00:06.8]} 26. g4 {[%clk 0:01:25.1]}
26... a6 {[%clk 0:00:04.9]} 27. Rf3 {[%clk 0:01:21.7]} 27... Qd6 {[%clk
0:00:04.3]} 28. Rb1 {[%clk 0:01:20.2]} 28... Rb8 {[%clk 0:00:02.8]} 29. Ne2
{[%clk 0:01:11.3]} 29... Rb7 {[%clk 0:00:02.9]} 30. b4 {[%clk 0:01:09.3]} 30...
b5 {[%clk 0:00:02.5]} 31. cxb5 {[%clk 0:01:04.7]} 31... Rxb5 {[%clk 0:00:02.6]}
32. bxc5 {[%clk 0:01:01.7]} 32... Qxc5 {[%clk 0:00:03.5]} 33. Rxb5 {[%clk
0:00:58.9]} 33... Qxb5 {[%clk 0:00:04.4]} 34. Nc3 {[%clk 0:00:55.5]} 34... Qc5
{[%clk 0:00:04.3]} 35. Qb3 {[%clk 0:00:49.7]} 35... Rc8 {[%clk 0:00:03.6]} 36.
d6+ {[%clk 0:00:48.6]} 36... Kh8 {[%clk 0:00:02.8]} 37. d7 {[%clk 0:00:46.2]}
37... Rd8 {[%clk 0:00:03]} 38. Rd3 {[%clk 0:00:46]} 38... Qc7 {[%clk 0:00:03]}
39. Qe6 {[%clk 0:00:43.9]} 39... Bf6 {[%clk 0:00:03.2]} 40. Qf7 {[%clk
0:00:41.8]} 40... Rxd7 {[%clk 0:00:02.7]} 41. Qe8+ {[%clk 0:00:42]} 1-0